bitfinex/quotes_ETHUSD_20241003
["timestamp","ask_amount","ask_price","bid_price","bid_amount"]
[1727967771530,4.30663,2322.0,2321.5,4.30751]
[1727967771832,4.30687,2321.9,2321.5,4.30745]
[1727967772139,4.30687,2321.9,2321.3,4.30775]
[1727967772140,4.30703,2321.8,2321.3,4.30775]
[1727967772291,4.30703,2321.8,2321.4,4.30772]
[1727967772724,4.30756,2321.5,2321.2,0.7932]
[1727967773139,4.30757,2321.5,2321.2,0.7932]
[1727967773991,4.30746,2321.6,2321.2,5.10121]
[1727967774197,4.30746,2321.6,2321.2,9.40923]
[1727967774454,4.30727,2321.7,2321.2,5.10121]
[1727967774620,4.30701,2321.8,2321.3,4.3079]
[1727967774829,4.30685,2321.9,2321.3,4.30788]
[1727967775048,4.30776,2321.4,2321.2,0.7932]
[1727967775392,5.11503,2321.8,2320.8,4.30873]
[1727967775796,4.30795,2321.3,2320.8,4.30875]
[1727967775946,4.30777,2321.4,2321.0,4.30837]
[1727967776350,8.61564,2321.4,2321.0,4.30837]
[1727967776519,4.30831,2321.1,2320.7,5.12397]
[1727967776745,4.30804,2321.3,2320.8,4.30883]
[1727967776746,4.30811,2321.2,2320.8,4.30883]
[1727967777222,4.30811,2321.2,2320.7,5.12397]
[1727967777559,4.30815,2321.2,2320.7,5.12388]
[1727967778055,4.30789,2321.4,2320.9,4.30858]
[1727967778255,4.30777,2321.4,2320.9,4.30857]
[1727967778605,4.30777,2321.4,2320.9,4.30853]
[1727967778803,8.61563,2321.4,2321.0,4.30841]
[1727967779046,4.30794,2321.3,2320.9,4.30864]
[1727967779359,4.30747,2321.6,2321.0,4.30836]
[1727967779541,4.67709716,2321.8,2321.0,4.30847]
[1727967779542,4.30782,2321.4,2321.0,4.30847]
[1727967779854,8.11504,2321.8,2320.9,4.30854]
[1727967779855,4.3075,2321.6,2320.9,4.30854]
[1727967780001,4.30831,2321.1,2320.7,0.815]
[1727967780205,4.30757,2321.5,2320.8,4.30884]
[1727967780206,4.30813,2321.2,2320.8,4.30884]
[1727967780658,4.30804,2321.3,2320.8,4.30875]
[1727967780818,4.30797,2321.3,2320.7,0.815]
[1727967781036,4.30776,2321.4,2320.7,0.815]
[1727967781356,4.30842,2321.1,2320.7,0.815]
[1727967781506,1.38064716,2321.6,2321.2,4.30802]
[1727967781712,4.30746,2321.6,2321.2,4.30802]
[1727967781916,5.98417716,2321.8,2321.3,5.14017]
[1727967782108,4.30727,2321.7,2321.3,5.14017]
[1727967782317,4.30727,2321.7,2321.3,0.8324]
[1727967782318,4.30744,2321.6,2321.3,0.8324]
[1727967782521,5.60638416,2322.0,2320.8,0.55]
[1727967782522,4.30759,2321.5,2321.0,4.30841]
[1727967782727,0.8105,2321.5,2320.7,0.8324]
[1727967783055,4.30783,2321.4,2321.0,4.30844]
[1727967783251,4.30783,2321.4,2320.9,4.30865]
[1727967783422,4.30783,2321.4,2321.0,4.30847]
[1727967783623,8.61568,2321.4,2321.0,4.30847]
[1727967783824,4.30809,2321.3,2320.7,9.45017]
[1727967784152,4.30822,2321.2,2320.7,0.8324]
[1727967784352,4.30793,2321.3,2320.8,4.30877]
[1727967784574,4.30774,2321.4,2320.9,4.30863]
[1727967784773,0.86909716,2321.6,2321.2,4.30804]
[1727967785061,8.61599234,2321.7,2320.9,0.514103]
[1727967785062,4.30776,2321.4,2320.9,4.822663]
[1727967785265,4.30776,2321.4,2320.9,4.30856]
[1727967785266,4.30803,2321.3,2320.9,4.30856]
[1727967785767,4.30838,2321.1,2320.8,0.7502]
[1727967785919,4.30758,2321.5,2320.8,5.05905]
[1727967785920,4.30794,2321.3,2320.8,5.05905]
[1727967786257,4.30828,2321.2,2320.8,5.05903]
[1727967786465,4.30828,2321.2,2320.8,5.05898]
[1727967786753,0.86909716,2321.6,2321.0,4.30837]
[1727967786754,4.30763,2321.5,2321.0,4.30837]
[1727967786985,4.30748,2321.6,2321.1,4.3082]
[1727967786986,4.30742,2321.6,2321.1,4.3082]
[1727967787114,4.30742,2321.6,2321.2,4.30802]
[1727967787115,4.3074,2321.6,2321.2,4.30802]
[1727967787312,5.11759,2321.8,2320.8,5.05897]
[1727967787313,4.308,2321.3,2320.8,0.7502]
[1727967787610,4.30806,2321.3,2320.8,0.7502]
[1727967787831,4.30821,2321.2,2320.8,5.05897]
[1727967788241,4.30775,2321.4,2320.8,0.7502]
[1727967788411,0.86909716,2321.7,2320.8,0.7502]
[1727967788412,3.0,2321.7,2321.1,4.30816]
[1727967788617,8.61547,2321.5,2321.1,4.30816]
[1727967788817,4.30778,2321.4,2321.0,4.30846]
[1727967789417,3.89864172,2321.7,2320.9,4.30858]
[1727967789617,4.30793,2321.3,2320.9,4.30858]
[1727967790036,4.30783,2321.4,2320.9,4.30858]
[1727967790242,4.30766,2321.5,2320.8,5.05901]
[1727967790460,4.30795,2321.3,2320.9,4.30852]
[1727967790756,4.30867,2320.9,2320.5,5.12477]
[1727967790913,8.61711,2321.0,2320.5,5.12469]
[1727967791270,4.30851,2321.0,2320.6,4.30914]
[1727967791569,4.30871,2320.9,2320.5,5.1248]
[1727967792157,4.30858,2321.0,2320.6,4.30915]
[1727967792331,8.17709716,2321.3,2320.9,4.30866]
[1727967792526,5.17685716,2321.4,2321.0,4.30834]
[1727967792745,3.86909716,2321.7,2321.0,0.8278]
[1727967792953,1.30867234,2321.8,2321.4,4.30767]
[1727967792954,5.17610716,2321.8,2321.4,4.30767]
[1727967793264,5.61567234,2321.9,2321.4,8.61531]
[1727967793265,5.17598716,2321.9,2321.4,8.61531]
[1727967793465,4.30707,2321.8,2321.4,4.30764]
[1727967793645,4.30689,2321.9,2321.5,0.7728]
[1727967793847,4.30703,2321.8,2321.5,0.7728]
[1727967794052,4.30719,2321.7,2321.5,0.7728]
[1727967794375,4.30703,2321.8,2321.5,0.7728]
[1727967794521,4.30673,2322.0,2321.5,1.280864]
[1727967794719,4.30673,2322.0,2321.6,4.30737]
[1727967795067,4.30673,2322.0,2321.6,4.30729]
[1727967795563,5.17546716,2322.2,2321.5,0.7728]
[1727967795564,5.17536716,2322.2,2321.5,0.7728]
[1727967795870,4.30684,2321.9,2321.5,5.08026]
[1727967796233,4.30684,2321.9,2321.5,0.7728]
[1727967796583,4.30779,2321.4,2321.2,0.7891]
[1727967796883,4.30827,2321.2,2320.9,0.7628]
[1727967797026,0.86909716,2321.6,2320.9,0.7628]
[1727967797027,4.30786,2321.4,2320.9,0.7628]
[1727967797359,4.30807,2321.3,2320.9,0.7628]
[1727967797572,4.30786,2321.4,2320.9,0.7628]
[1727967797716,4.30775,2321.4,2320.9,0.7628]
[1727967797920,4.30757,2321.5,2321.0,4.30847]
[1727967798121,4.30757,2321.5,2321.1,4.3083]
[1727967798335,4.3075,2321.6,2321.2,4.30811]
[1727967798559,4.30775,2321.4,2321.0,0.55]
[1727967798820,4.30775,2321.4,2320.9,9.37988]
[1727967798821,4.30776,2321.4,2320.9,9.37988]
[1727967799040,4.30776,2321.4,2320.9,5.0714]
[1727967799248,4.30798,2321.3,2320.9,5.0714]
[1727967799654,4.30776,2321.4,2320.9,9.37996]
[1727967799839,4.30776,2321.4,2320.9,9.37993]
[1727967800039,1.63459716,2321.9,2321.0,0.55]
[1727967800264,5.1777695,2322.1,2321.2,0.55]
[1727967800565,8.61349,2322.0,2321.6,0.8002]
[1727967800877,4.30673,2322.0,2321.6,0.8002]
[1727967801067,1.33884349,2322.2,2321.6,0.8002]
[1727967801068,4.30637,2322.2,2321.8,4.30697]
[1727967801225,0.86909716,2322.4,2321.7,0.8058]
[1727967801421,0.86909716,2322.7,2322.3,4.306]
[1727967801626,5.17398716,2323.0,2322.5,0.8058]
[1727967801870,1.73940116,2323.2,2322.5,0.8058]
[1727967801871,0.86909716,2323.2,2322.8,4.30511]
[1727967802080,5.61290234,2323.3,2322.8,4.30511]
[1727967802081,4.30423,2323.3,2322.8,4.30511]
[1727967802281,5.17323716,2323.4,2323.0,0.7849]
[1727967802282,5.17313716,2323.4,2323.0,0.7849]
[1727967802487,4.30441,2323.2,2323.0,0.7849]
[1727967802698,4.30424,2323.3,2323.0,0.7849]
[1727967803184,4.30422,2323.3,2323.0,0.7849]
[1727967803340,4.30459,2323.1,2322.6,4.30539]
[1727967803543,1.43564127,2323.7,2322.4,4.30577]
[1727967803544,4.30508,2322.9,2322.7,0.7483]
[1727967803912,4.30572,2322.5,2322.0,4.3065]
[1727967804187,0.7678,2323.1,2321.6,4.41576595]
[1727967804188,4.30554424,2322.1,2321.6,4.30728]
[1727967804389,4.30662,2322.1,2321.6,4.30736]
[1727967804548,1.38864127,2322.5,2320.8,4.30874]
[1727967804741,1.38864127,2322.5,2320.6,0.89540748]
[1727967804742,4.30712,2321.8,2321.3,4.30787]
[1727967805184,4.30712,2321.8,2321.4,4.30771]
[1727967805338,4.30712,2321.8,2321.1,4.30815]
[1727967805550,4.30712,2321.8,2320.9,4.30855]
[1727967805551,4.30776,2321.4,2320.9,4.30855]
[1727967805758,4.30776,2321.4,2321.0,4.30847]
[1727967805970,4.30776,2321.4,2320.8,4.30885]
[1727967806448,4.30776,2321.4,2320.9,4.30857]
[1727967806648,4.30712,2321.8,2321.3,4.30792]
[1727967806847,3.0,2322.1,2321.5,5.05802]
[1727967807080,1.65899716,2322.2,2321.8,4.30699]
[1727967807081,4.30631,2322.2,2321.8,4.30699]
[1727967807289,3.0,2322.3,2321.9,4.30672]
[1727967807581,4.30571,2322.5,2322.0,4.30652]
[1727967807783,4.3059,2322.4,2321.7,4.30705]
[1727967807999,4.30608,2322.3,2321.8,4.30698]
[1727967808289,2.11107234,2322.8,2321.5,0.7505]
[1727967808290,4.30571,2322.5,2322.1,0.7944]
[1727967808495,4.30527,2322.8,2322.3,4.30599]
[1727967808712,7.34984561,2323.7,2322.8,4.30502]
[1727967808713,0.86909716,2323.2,2322.8,4.30502]
[1727967808853,0.86909716,2323.2,2322.7,0.7542]
[1727967808854,0.86909716,2323.5,2323.0,4.30469]
[1727967809054,5.17260716,2323.7,2323.2,4.30438]
[1727967809256,4.30376,2323.6,2323.1,0.06952737]
[1727967809494,4.30376,2323.6,2322.7,0.7542]
[1727967809495,0.797,2323.8,2322.7,0.7542]
[1727967809675,4.30407,2323.4,2322.7,5.05942]
[1727967809886,4.30435,2323.3,2322.7,0.7542]
[1727967810057,0.860825,2323.3,2322.7,0.7542]
[1727967810410,1.66609716,2323.8,2322.7,0.7542]
[1727967810411,4.30454,2323.2,2322.7,0.7542]
[1727967810572,4.30416,2323.4,2322.7,0.7542]
[1727967810756,4.30378,2323.6,2322.8,4.30501]
[1727967810955,4.30417,2323.4,2322.8,4.30501]
[1727967811206,1.66609716,2323.8,2322.7,0.7542]
[1727967811207,4.30462,2323.1,2322.7,0.7542]
[1727967811371,4.30478,2323.0,2322.7,0.7542]
[1727967811696,5.96939716,2323.8,2322.7,5.0594]
[1727967811697,4.30442,2323.2,2322.7,5.0594]
[1727967811927,4.30462,2323.1,2322.7,0.7542]
[1727967812258,7.30368,2323.6,2322.8,4.30512]
[1727967812259,3.0,2323.4,2322.8,4.30512]
[1727967812458,3.0,2323.4,2322.7,0.7542]
[1727967812459,4.3045,2323.2,2322.7,0.7542]
[1727967812697,4.30424,2323.3,2322.7,5.05944]
[1727967812902,3.797,2323.8,2323.0,4.30477]
[1727967813079,7.30386,2323.5,2322.8,4.30503]
[1727967813608,7.30386,2323.5,2323.0,4.30469]
[1727967813609,4.30388,2323.5,2323.0,4.30469]
[1727967813758,4.30367,2323.6,2323.0,4.30467]
[1727967813962,5.10045,2323.8,2323.3,4.3042]
[1727967814162,0.86909716,2324.2,2323.3,4.3042]
[1727967814163,4.30276,2324.1,2323.6,4.3035]
[1727967814404,4.30217,2324.5,2323.9,4.30297]
[1727967814567,4.30175,2324.7,2324.0,5.12544]
[1727967814765,4.30255,2324.2,2324.0,0.8227]
[1727967815003,0.7918,2324.9,2323.7,7.3034]
[1727967815303,0.7918,2324.9,2323.6,0.8227]
[1727967815519,4.30281,2324.1,2323.6,0.8227]
[1727967815805,4.30232,2324.4,2323.7,4.30346]
[1727967815970,4.30232,2324.4,2323.6,0.8227]
[1727967815971,4.30292,2324.1,2323.6,0.8227]
[1727967816160,4.30334,2323.8,2323.6,0.8227]
[1727967816366,4.30386,2323.5,2323.1,0.7986]
[1727967816678,4.30363,2323.7,2323.2,4.30432]
[1727967817068,4.30287,2324.1,2323.6,4.30361]
[1727967817311,4.30224,2324.4,2323.9,4.30306]
[1727967817605,4.30225,2324.4,2323.8,0.8197]
[1727967817763,4.30225,2324.4,2323.5,4.30372]
[1727967817764,4.30312,2323.9,2323.5,4.30372]
[1727967818109,4.30224,2324.4,2323.5,0.55]
[1727967818333,4.30191,2324.6,2324.2,4.30255]
[1727967818603,0.7833,2325.2,2324.4,4.30203]
[1727967818805,4.30117,2325.0,2324.5,4.30199]
[1727967819009,5.239699,2325.0,2324.5,4.30199]
[1727967819178,5.239749,2325.0,2324.4,4.30208]
[1727967819377,4.30127,2324.9,2324.4,4.30208]
[1727967819580,5.239749,2325.0,2324.1,4.30264]
[1727967819581,4.30164,2324.7,2324.1,4.30264]
[1727967819896,4.30247,2324.3,2324.0,0.8197]
[1727967820067,4.30221,2324.4,2324.0,0.8197]
[1727967820269,0.430164,2324.6,2324.0,0.8197]
[1727967820492,4.3032,2323.9,2323.6,0.7525]
[1727967820685,0.8161,2324.4,2323.6,0.7525]
[1727967820686,4.30288,2324.1,2323.6,0.7525]
[1727967821060,4.30301,2324.0,2323.6,0.7525]
[1727967821183,4.30348,2323.7,2323.3,4.30406]
[1727967821384,4.30348,2323.7,2323.2,0.7525]
[1727967821385,4.30375,2323.6,2323.2,0.7525]
[1727967821585,5.164473,2323.6,2323.2,0.7525]
[1727967821783,4.30375,2323.6,2323.2,0.7525]
[1727967822071,4.30378,2323.6,2323.2,0.7525]
[1727967822272,4.30257,2324.2,2323.2,0.7525]
[1727967822273,3.0,2324.2,2323.2,0.7525]
[1727967822575,4.3032,2323.9,2323.4,4.30387]
[1727967822798,4.30335,2323.8,2323.2,5.05679]
[1727967823001,8.6058,2324.1,2323.5,4.30367]
[1727967823314,8.6058,2324.1,2323.6,4.30364]
[1727967823315,8.60573,2324.1,2323.6,4.30364]
[1727967823473,4.30295,2324.0,2323.6,4.30364]
[1727967823665,4.30243,2324.3,2323.7,4.30335]
[1727967823882,4.3022,2324.4,2323.9,4.303]
[1727967824221,4.30266,2324.2,2323.8,0.7694]
[1727967824507,4.30274,2324.1,2323.8,0.7694]
[1727967824717,0.8269,2324.8,2323.8,0.7694]
[1727967824915,4.3026,2324.2,2323.8,0.7694]
[1727967825269,4.30321,2323.9,2323.5,0.7806]
[1727967825698,4.30286,2324.1,2323.5,0.7806]
[1727967826034,4.30286,2324.1,2323.6,4.30363]
[1727967826035,4.30293,2324.0,2323.6,4.30363]
[1727967826176,4.30293,2324.0,2323.5,0.7806]
[1727967826365,4.30328,2323.9,2323.5,1.289052]
[1727967826565,4.30301,2324.0,2323.5,0.7806]
[1727967826779,4.30243,2324.3,2323.5,0.7806]
[1727967826984,4.30248,2324.3,2323.6,0.02436424]
[1727967827205,4.30237,2324.3,2323.8,4.3032]
[1727967827408,3.0,2324.8,2323.5,0.7806]
[1727967827409,0.7564,2324.8,2324.3,4.30227]
[1727967827624,4.30134,2324.9,2324.4,4.30208]
[1727967827920,4.30134,2324.9,2324.1,0.7937]
[1727967827921,4.30163,2324.7,2324.2,4.85245]
[1727967828215,4.30249,2324.3,2324.1,0.7937]
[1727967828423,4.30311,2323.9,2323.5,0.8025]
[1727967828914,4.30351,2323.7,2323.5,0.8025]
[1727967829412,4.30393,2323.5,2323.1,0.8014]
[1727967829615,4.30311,2323.9,2323.1,0.8014]
[1727967829616,4.30404,2323.4,2323.1,0.8014]
[1727967829909,4.30417,2323.4,2322.7,4.30532]
[1727967830122,5.07027,2323.5,2323.0,4.30472]
[1727967830426,3.0,2323.6,2322.6,0.8014]
[1727967830720,3.0,2323.6,2322.7,4.30532]
[1727967830721,4.30453,2323.2,2322.7,4.30532]
[1727967830871,3.0,2323.4,2322.7,4.30532]
[1727967831077,4.30415,2323.4,2322.7,4.34483096]
[1727967831496,11.60792,2323.5,2322.8,0.03684247]
[1727967831797,11.60792,2323.5,2322.7,4.3052]
[1727967831798,3.0,2323.5,2322.7,0.08608873]
[1727967831984,4.3045,2323.2,2322.6,0.8014]
[1727967832210,4.30394,2323.5,2322.8,4.3051]
[1727967832512,9.803571,2323.8,2323.2,5.07068]
[1727967832813,3.0,2324.0,2323.5,4.30374]
[1727967832814,4.30303,2324.0,2323.5,4.30374]
[1727967833168,4.30311,2323.9,2323.5,4.30374]
[1727967833625,4.30303,2324.0,2323.3,4.30414]
[1727967833626,4.30347,2323.8,2323.3,4.30414]
[1727967833918,4.30347,2323.8,2323.4,4.30403]
[1727967834118,4.30313,2323.9,2323.4,8.60796]
[1727967834271,4.30313,2323.9,2323.4,8.60787]
[1727967834699,4.30303,2324.0,2323.6,4.30357]
[1727967834901,4.30274,2324.1,2323.6,8.6071]
[1727967835099,4.30274,2324.1,2323.8,0.8183]
[1727967835100,4.30285,2324.1,2323.8,0.8183]
[1727967835301,4.30255,2324.2,2323.8,0.8183]
[1727967835502,4.30255,2324.2,2323.8,5.12158]
[1727967835702,4.3024,2324.3,2323.8,5.12158]
[1727967836154,4.3021,2324.5,2324.1,4.30272]
[1727967836462,4.3021,2324.5,2324.0,4.30279]
[1727967836671,4.3021,2324.5,2324.1,4.30274]
[1727967836842,8.60353,2324.7,2324.2,4.30252]
[1727967837022,4.30144,2324.9,2324.3,5.1219]
[1727967837225,4.30171,2324.7,2324.3,5.1219]
[1727967837424,4.30144,2324.8,2324.3,5.12184]
[1727967837623,4.30144,2324.8,2324.3,5.07184]
[1727967838028,4.30165,2324.7,2324.3,5.583998]
[1727967838228,4.30165,2324.7,2324.3,1.281758]
[1727967838773,4.30255,2324.2,2323.8,4.30327]
[1727967838972,4.30227,2324.4,2323.8,4.30327]
[1727967839138,4.30156,2324.8,2324.3,4.30235]
[1727967839139,4.30164,2324.7,2324.3,4.30235]
[1727967839323,4.30164,2324.7,2323.5,3.0]
[1727967839324,4.30195,2324.6,2324.1,4.30264]
[1727967839520,4.30147,2324.8,2323.9,4.30299]
[1727967839757,3.38035,2324.9,2323.5,4.30377]
[1727967839968,4.30282,2324.1,2323.6,4.30351]
[1727967840273,4.30214,2324.5,2323.8,4.30314]
[1727967840438,4.30255,2324.3,2323.8,4.733454]
[1727967840647,4.30319,2323.9,2323.7,0.7865]
[1727967840963,4.30284,2324.1,2323.7,0.7865]
[1727967841469,4.30249,2324.3,2323.7,5.08997]
[1727967841470,4.30258,2324.2,2323.7,5.08997]
[1727967841828,4.30237,2324.3,2323.8,4.30318]
[1727967842033,1.582887,2324.7,2323.7,0.7865]
[1727967842342,4.30229,2324.4,2323.9,4.30308]
[1727967842542,4.30202,2324.5,2324.0,4.3028]
[1727967842741,4.30203,2324.5,2323.9,4.30292]
[1727967842947,0.430203,2324.5,2323.7,0.7865]
[1727967843253,4.30268,2324.2,2323.7,5.08987]
[1727967843457,4.30246,2324.3,2323.7,0.7865]
[1727967843655,4.30218,2324.4,2323.7,0.7865]
[1727967843842,4.30218,2324.4,2323.4,3.0]
[1727967843843,4.30354,2323.7,2323.2,4.30426]
[1727967844042,4.30329,2323.8,2323.3,5.10762]
[1727967844275,4.30248,2324.3,2323.3,0.8035]
[1727967844475,0.7568,2324.5,2324.0,0.7637]
[1727967844476,4.30211,2324.5,2324.0,0.7637]
[1727967844628,4.30211,2324.5,2324.0,5.06659]
[1727967844961,4.30211,2324.5,2323.7,0.7637]
[1727967844962,4.30283,2324.1,2323.7,0.7637]
[1727967845131,4.30321,2323.9,2323.7,0.7637]
[1727967845331,4.30321,2323.9,2323.5,4.30382]
[1727967845570,4.30348,2323.7,2323.4,0.7988]
[1727967845773,4.30321,2323.9,2323.4,5.613038]
[1727967845976,4.30321,2323.9,2323.5,4.30383]
[1727967846185,4.3032,2323.9,2323.5,4.30383]
[1727967846481,4.30302,2324.0,2323.6,4.30363]
[1727967846776,4.30253,2324.3,2323.8,4.30329]
[1727967846940,4.30231,2324.4,2323.4,5.10276]
[1727967847130,4.30312,2323.9,2323.5,4.30383]
[1727967847366,4.30285,2324.1,2323.5,4.30383]
[1727967847367,4.30285,2324.1,2323.6,4.30355]
[1727967847537,4.30385,2323.5,2322.8,4.30502]
[1727967847741,4.30452,2323.2,2322.7,5.0888]
[1727967848181,3.0,2323.7,2322.9,4.30488]
[1727967848182,4.30425,2323.3,2322.9,4.30488]
[1727967848477,4.30422,2323.3,2322.7,0.7836]
[1727967848779,4.30389,2323.5,2322.7,0.7836]
[1727967848959,4.30429,2323.3,2322.9,4.30495]
[1727967849131,4.30429,2323.3,2322.9,4.30487]
[1727967849533,3.0,2323.7,2322.7,0.7836]
[1727967849778,4.30448,2323.2,2322.8,4.30505]
[1727967849946,4.30459,2323.1,2322.7,0.7836]
[1727967850152,4.30497,2322.9,2322.7,0.7836]
[1727967850389,4.3048,2323.0,2322.5,4.30558]
[1727967850531,4.3048,2323.0,2322.4,5.07584]
[1727967850732,4.30468,2323.1,2322.4,1.277684]
[1727967850993,4.30431,2323.3,2322.8,4.30505]
[1727967851142,8.60796,2323.5,2323.0,4.30463]
[1727967851344,4.30418,2323.4,2322.9,0.83]
[1727967851656,0.8313,2323.0,2322.1,0.8271]
[1727967851962,4.3057,2322.5,2321.8,5.13397]
[1727967852356,8.61153,2322.5,2321.8,5.13397]
[1727967852674,4.3057,2322.5,2321.8,5.13408]
[1727967852838,4.3057,2322.5,2321.9,0.513408]
[1727967853039,4.3057,2322.5,2321.9,4.820088]
[1727967853241,4.3057,2322.5,2321.9,0.513408]
[1727967853479,3.8313,2323.0,2322.0,4.30663]
[1727967853480,4.30547,2322.7,2322.0,4.30663]
[1727967853645,4.30545,2322.7,2322.1,4.7884338]
[1727967853844,4.30561,2322.6,2322.1,0.4820038]
[1727967854042,4.30561,2322.6,2322.0,5.20203748]
[1727967854447,4.30543,2322.7,2322.1,4.30632]
[1727967854676,4.30552,2322.6,2322.3,0.8327]
[1727967854884,4.30543,2322.7,2322.3,0.8327]
[1727967855082,8.61093,2322.7,2322.4,0.55]
[1727967855385,4.30602,2322.4,2322.0,0.8327]
[1727967855684,4.30608,2322.3,2322.0,0.8327]
[1727967855893,4.30644,2322.1,2321.8,0.89540748]
[1727967856186,4.3062,2322.3,2321.9,0.89540748]
[1727967856334,4.30591,2322.4,2321.8,5.20238748]
[1727967856541,4.30573,2322.5,2322.0,4.30663]
[1727967856839,4.30501,2322.9,2322.2,0.8182]
[1727967856840,4.30511,2322.9,2322.2,0.8182]
[1727967857066,4.3048,2323.0,2322.4,4.30576]
[1727967857265,4.30436,2323.3,2322.7,0.55]
[1727967857576,4.30433,2323.3,2322.9,0.55]
[1727967857737,4.3036,2323.7,2323.0,5.11215]
[1727967857937,0.86909716,2323.9,2323.5,0.8074]
[1727967858289,5.61160234,2324.0,2323.6,0.55]
[1727967858290,4.30331,2323.8,2323.6,0.55]
[1727967858438,4.30331,2323.8,2323.5,0.8074]
[1727967858439,4.30366,2323.6,2323.5,0.8074]
[1727967858634,4.30406,2323.4,2323.1,0.8074]
[1727967858885,4.30406,2323.4,2322.4,0.10953157]
[1727967858886,4.30478,2323.0,2322.7,1.3574]
[1727967859772,4.30469,2323.1,2322.7,1.3574]
[1727967859937,4.3044,2323.2,2322.7,1.3574]
[1727967860143,4.3044,2323.2,2322.7,5.66259]
[1727967860489,4.3044,2323.2,2322.7,5.66273]
[1727967860638,4.30424,2323.3,2322.9,0.55]
[1727967861038,4.30441,2323.2,2322.8,0.55]
[1727967861240,4.3046,2323.1,2322.8,0.55]
[1727967861885,8.60933,2323.1,2322.8,0.55]
[1727967862183,4.30867234,2323.7,2322.9,0.757]
[1727967862184,0.86909716,2323.7,2322.9,0.757]
[1727967862413,0.86909716,2323.7,2323.6,0.757]
[1727967862538,1.30867234,2323.8,2323.6,1.307]
[1727967862539,0.86909716,2323.8,2323.6,1.307]
[1727967862743,4.30329,2323.8,2323.7,0.55]
[1727967862993,5.61157234,2324.1,2323.7,0.55]
[1727967862994,4.30322,2323.9,2323.7,0.55]
[1727967863346,4.30322,2323.9,2323.3,4.3042]
[1727967863347,4.3035,2323.7,2323.3,0.55]
[1727967863570,4.30358,2323.7,2323.3,0.55]
[1727967863781,5.17241716,2323.8,2323.3,4.8541]
[1727967863997,0.86909716,2323.8,2323.5,0.55]
[1727967864287,0.86909716,2323.8,2323.4,0.55]
[1727967864288,0.86909716,2323.7,2323.4,0.55]
[1727967864454,0.86909716,2323.8,2323.3,0.55]
[1727967864654,4.30394,2323.5,2323.3,0.55]
[1727967864862,1.30867234,2323.8,2322.9,0.8098]
[1727967864863,5.17275716,2323.6,2322.9,0.8098]
[1727967865178,4.30475,2323.1,2322.9,0.8098]
[1727967865487,4.30433,2323.3,2322.9,0.8098]
[1727967865690,4.30476,2323.1,2322.9,0.8098]
[1727967865889,4.30476,2323.1,2322.5,4.3056]
[1727967865890,5.17315716,2323.4,2322.6,0.7729]
[1727967866094,4.30518,2322.8,2322.3,5.07883]
[1727967866299,4.30545,2322.7,2322.3,0.7729]
[1727967866589,4.30522,2322.8,2322.3,0.7729]
[1727967866746,4.30489,2323.0,2322.4,0.507906]
[1727967866940,3.86909716,2323.3,2322.7,4.30524]
[1727967867145,0.86909716,2323.4,2323.0,0.7643]
[1727967867339,4.30421,2323.4,2323.0,1.271216]
[1727967867596,4.30421,2323.4,2323.1,0.55]
[1727967867597,4.3043,2323.3,2323.1,0.55]
[1727967867747,5.17315716,2323.4,2323.1,0.55]
[1727967867953,4.30426,2323.3,2323.1,0.55]
[1727967868194,0.86909716,2323.3,2323.1,0.55]
[1727967868342,4.30423,2323.3,2323.1,0.55]
[1727967868541,5.17312716,2323.5,2323.1,1.111908]
[1727967868747,0.86909716,2323.6,2323.1,1.111908]
[1727967868948,1.30867234,2323.7,2323.1,1.111908]
[1727967868949,0.86909716,2323.7,2323.1,1.111908]
[1727967869147,8.60837,2323.4,2323.1,1.111908]
[1727967869383,4.3044,2323.2,2323.1,0.55]
[1727967869754,4.30381,2323.6,2322.9,0.55]
[1727967869755,4.30425,2323.3,2322.9,0.55]
[1727967870002,1.67059716,2323.8,2322.9,0.55]
[1727967870003,4.30414,2323.4,2322.9,4.85493]
[1727967870173,4.30362,2323.7,2323.3,0.55]
[1727967870522,4.3033,2323.8,2323.3,0.55]
[1727967870725,4.3033,2323.8,2323.5,0.55]
[1727967870866,4.30255,2324.2,2323.9,0.55]
[1727967871067,5.17104716,2324.6,2324.1,0.55]
[1727967871276,5.17104716,2324.6,2324.3,0.55]
[1727967871485,5.17127716,2324.4,2324.3,0.55]
[1727967871679,5.17127716,2324.4,2324.2,1.3143]
[1727967871889,5.17127716,2324.4,2324.3,0.55]
[1727967872102,4.30249,2324.3,2323.9,0.7643]
[1727967872269,4.30264,2324.2,2324.0,0.55]
[1727967872467,4.30257,2324.2,2324.0,0.55]
[1727967872706,4.30274,2324.1,2324.0,0.55]
[1727967872919,4.30274,2324.1,2323.6,0.7643]
[1727967872920,4.30308,2324.0,2323.6,0.7643]
[1727967873124,4.30277,2324.1,2323.6,5.06795]
[1727967873417,5.17153716,2324.3,2323.7,4.3033]
[1727967873765,4.30256,2324.2,2323.8,4.30327]
[1727967873918,8.60527,2324.2,2323.7,4.30346]
[1727967874070,4.30287,2324.1,2323.7,0.55]
[1727967874509,4.30295,2324.0,2323.6,0.7643]
[1727967874721,5.93589716,2324.3,2323.6,0.7643]
[1727967874722,4.3034,2323.8,2323.6,0.7643]
[1727967875218,4.30348,2323.7,2323.6,0.7643]
[1727967875373,4.30413,2323.4,2322.9,5.08288]
[1727967875582,4.30434,2323.3,2322.9,0.778]